fUSD/lending_fUSD_20251221
["ID","MTS","AMOUNT","RATE_DAILY","PERIOD"]
[399434131,1766347844117,-3152.35617709,0.00038999,2]
[399434132,1766347844126,-20309.07680211,0.00038999,2]
[399434133,1766347844135,-19906.05460655,0.00038999,4]
[399434134,1766347844144,-500.0,0.00038999,60]
[399434135,1766347844154,-500.0,0.00038999,60]
[399434136,1766347844164,-549.68,0.00038999,60]
[399434137,1766347844174,-549.68,0.00038999,60]
[399434138,1766347844186,-549.68,0.00038999,60]
[399434139,1766347844196,-549.68,0.00038999,60]
[399434140,1766347844206,-549.68,0.00038999,60]
[399434141,1766347844215,-549.68,0.00038999,60]
[399434142,1766347844226,-549.68,0.00038999,60]
[399434143,1766347844235,-549.74,0.00038999,60]
[399434144,1766347844245,-500.0,0.00038999,60]
[399434145,1766347844255,-500.0,0.00038999,60]
[399434146,1766347844264,-242.14254915,0.00038999,60]
[399434147,1766347844273,-552.01,0.00038999,60]
[399434148,1766347844283,-552.01,0.00038999,60]
[399434149,1766347844292,-552.01,0.00038999,60]
[399434150,1766347844302,-552.01,0.00038999,60]
[399434151,1766347844313,-552.01,0.00038999,60]
[399434152,1766347844323,-552.01,0.00038999,60]
[399434153,1766347844332,-552.01,0.00038999,60]
[399434154,1766347844341,-552.01,0.00038999,60]
[399434155,1766347844350,-552.01,0.00038999,60]
[399434156,1766347844358,-552.01,0.00038999,60]
[399434157,1766347844367,-552.01,0.00038999,60]
[399434158,1766347844377,-1003.31,0.00038999,60]
[399434159,1766347844386,-1003.31,0.00038999,60]
[399434160,1766347844395,-1003.31,0.00038999,60]
[399434161,1766347844403,-1003.31,0.00038999,60]
[399434162,1766347844412,-1003.31,0.00038999,60]
[399434163,1766347844421,-1003.31,0.00038999,60]
[399434164,1766347844430,-1003.31,0.00038999,60]
[399434165,1766347844439,-1003.31,0.00038999,60]
[399434166,1766347844448,-1003.31,0.00038999,60]
[399434167,1766347844457,-1003.31,0.00038999,60]
[399434168,1766347844466,-1003.31,0.00038999,60]
[399434170,1766347844475,-1003.31,0.00038999,60]
[399434171,1766347844485,-1003.33,0.00038999,60]
[399434172,1766347844495,-221.06533037,0.00038999,60]
[399434173,1766347844505,-500.0,0.00038999,60]
[399434174,1766347844514,-500.0,0.00038999,60]
[399434175,1766347844523,-500.0,0.00038999,60]
[399434176,1766347844533,-300.0,0.00038999,10]
[399434177,1766347844542,-300.0,0.00038999,10]
[399434178,1766347844551,-666.0,0.00038999,30]
[399434179,1766347844560,-300.0,0.00038999,10]
[399434180,1766347844570,-50000.0,0.00039,39]
[399434181,1766347844579,-50000.0,0.00039,29]
[399434182,1766347844588,-50000.0,0.00039,19]
[399434183,1766347844597,-1335.88140963,0.00039,31]
[399434184,1766347844607,-1044454.48110701,0.00039,2]
[399434185,1766347844625,-1103.01415453,0.00039,2]
[399434186,1766347844638,-268.05668985,0.00039,2]
[399434187,1766347844648,-443.58598797,0.00039,2]
[399434188,1766347844752,-158.81356563,0.00039,2]
[399434189,1766347844762,-801.50537532,0.00039,2]
[399434190,1766347844774,-2505.65622077,0.00039,2]
[399434191,1766347844788,-528.28672,0.00039,2]
[399434192,1766347844811,-172.34861793,0.00020368,2]
[399434193,1766347844821,-604078.47080667,0.00039,2]
[399434194,1766347844834,-1320.71911952,0.00039,2]
[399434195,1766347844845,-7272.30772007,0.00039,2]
[399434196,1766347844857,-15135.09587023,0.00039,2]
[399434197,1766347844867,-26220.84080366,0.00039,2]
[399434202,1766347846254,-929.12355463,0.00027805,2]
[399434203,1766347846266,-289.53444537,0.00027805,2]
[399434204,1766347846275,-1197.0,0.00030805,2]
[399434205,1766347846284,-1197.0,0.00033805,2]
[399434206,1766347846294,-1197.0,0.00036805,2]
[399434207,1766347846303,-2927.64842929,0.00039,2]
[399434208,1766347846314,-4363.76389369,0.00039,2]
[399434209,1766347846329,-332031.74651871,0.00039,2]
[399434210,1766347846340,-293348.9310438,0.00039,2]
[399434211,1766347846350,-404.73403491,0.00039,2]
[399434213,1766347846361,-1587.635991,0.00039,2]
[399434215,1766347846373,-521.50544742,0.00039,2]
[399434217,1766347846383,-540.52,0.00039,2]
[399434219,1766347846402,-2164.14465,0.00039,2]
[399434222,1766347862367,500.0,9.42e-05,2]
[399434435,1766348497637,671.4,0.00035616,49]
[399434516,1766348713532,2150.22,6.405e-05,2]
[399434517,1766348713719,2150.22,6.742e-05,2]
[399434518,1766348713866,172.0160815,0.00026507,30]
[399434519,1766348713924,2150.22,7.08e-05,2]
[399434520,1766348714135,2150.22,7.417e-05,2]
[399434521,1766348714339,1399.13,7.754e-05,2]
[399434522,1766348714364,751.09,7.754e-05,2]
[399434523,1766348714532,2150.22,8.091e-05,2]
[399434524,1766348715069,2150.22,8.428e-05,2]
[399434525,1766348715278,2150.22,8.765e-05,2]
[399434526,1766348716650,2150.22,9.102e-05,2]
[399434527,1766348716874,648.04,9.439e-05,2]
[399434528,1766348716899,1502.18,9.439e-05,2]
[399434536,1766348775307,984.59477494,0.000209,30]
[399434577,1766348947762,1000.0,0.00035615,30]
[399434587,1766349031884,-230.0,9.776e-05,2]
[399434589,1766349031895,-2150.22,9.776e-05,2]
[399434591,1766349031905,-250.0,9.788e-05,2]
[399434592,1766349031915,-205.0,9.8e-05,2]
[399434594,1766349031924,-300.0,9.999e-05,2]
[399434596,1766349031934,-383.00315239,9.999e-05,2]
[399434597,1766349031950,-816.99684761,9.999e-05,2]
[399434598,1766349031959,-300.0,9.999e-05,2]
[399434599,1766349031968,-150.0,9.999e-05,2]
[399434600,1766349031978,-1019.9065129,0.0001,2]
[399434601,1766349031990,-905.56628487,0.0001,2]
[399434602,1766349031999,-1221.8135902,0.0001,2]
[399434603,1766349032011,-879.45743612,0.0001,2]
[399434604,1766349032026,-498.53357819,0.0001,2]
[399434605,1766349032037,-127.02659157,0.0001,2]
[399434606,1766349032047,-12588.44690276,0.0001,2]
[399434607,1766349032062,-10135.66055286,0.0001,2]
[399434608,1766349032071,-278.19119952,0.00010014,2]
[399434609,1766349032083,-259.0314593,0.000101,2]
[399434610,1766349032094,-2150.22,0.00010114,2]
[399434611,1766349032103,-500.0,0.0001031,2]
[399434612,1766349032112,-2150.22,0.00010451,2]
[399434613,1766349032123,-267.40656056,0.000107,2]
[399434614,1766349032132,-253.41080136,0.00010754,2]
[399434615,1766349032141,-221.31372828,0.00010754,2]
[399434616,1766349032151,-250.0,0.00010754,2]
[399434617,1766349032161,-813.0,0.00010787,2]
[399434618,1766349032170,-2150.22,0.00010788,2]
[399434619,1766349032179,-985.00508218,0.000108,2]
[399434620,1766349032188,-1600.0,0.00010987,2]
[399434621,1766349032198,-420.0,0.00010999,2]
[399434622,1766349032207,-1680.0,0.00010999,2]
[399434623,1766349032220,-420.0,0.00010999,2]
[399434624,1766349032229,-255.0,0.00010999,2]
[399434625,1766349032239,-5531.73266005,0.00011,2]
[399434626,1766349032248,-1908.73,0.00011048,2]
[399434627,1766349032258,-319.35147382,0.00011093,2]
[399434629,1766349032267,-500.0,0.00011093,2]
[399434631,1766349032276,-500.0,0.00011093,2]
[399434632,1766349032286,-500.0,0.00011093,2]
[399434633,1766349032295,-500.0,0.00011093,2]
[399434634,1766349032304,-500.0,0.00011093,2]
[399434635,1766349032315,-500.0,0.00011093,2]
[399434636,1766349032324,-500.0,0.00011093,2]
[399434637,1766349032333,-500.0,0.00011093,2]
[399434638,1766349032343,-500.0,0.00011093,2]
[399434639,1766349032352,-500.0,0.00011093,2]
[399434640,1766349032361,-500.0,0.00011093,2]
[399434641,1766349032371,-500.0,0.00011093,2]
[399434642,1766349032380,-500.0,0.00011093,2]
[399434643,1766349032389,-500.0,0.00011093,2]
[399434644,1766349032399,-500.0,0.00011093,2]
[399434645,1766349032408,-500.0,0.00011093,2]
[399434646,1766349032418,-500.0,0.00011093,2]
[399434647,1766349032427,-500.0,0.00011093,2]
[399434648,1766349032436,-500.0,0.00011093,2]
[399434649,1766349032446,-500.0,0.00011093,2]
[399434650,1766349032455,-500.0,0.00011093,2]
[399434651,1766349032464,-500.0,0.00011093,2]
[399434652,1766349032473,-500.0,0.00011093,2]
[399434653,1766349032482,-500.0,0.00011093,2]
[399434654,1766349032492,-500.0,0.00011093,2]
[399434655,1766349032501,-500.0,0.00011093,2]
[399434656,1766349032510,-500.0,0.00011093,2]
[399434657,1766349032520,-500.0,0.00011093,2]
[399434658,1766349032531,-500.0,0.00011093,2]
[399434659,1766349032543,-500.0,0.00011093,2]
[399434660,1766349032552,-500.0,0.00011093,2]
[399434661,1766349032562,-500.0,0.00011093,2]
[399434662,1766349032571,-500.0,0.00011093,2]
[399434663,1766349032580,-500.0,0.00011093,2]
[399434664,1766349032590,-500.0,0.00011093,2]
[399434665,1766349032600,-500.0,0.00011093,2]
[399434666,1766349032609,-500.0,0.00011093,2]
[399434667,1766349032618,-500.0,0.00011093,2]
[399434668,1766349032628,-500.0,0.00011093,2]
[399434669,1766349032637,-500.0,0.00011093,2]
[399434671,1766349032646,-296.12559754,0.00011093,2]
[399434673,1766349032656,-403.04870272,0.00011093,2]
[399434675,1766349032665,-256.94408507,0.00011093,2]
[399434676,1766349032675,-500.0,0.00011093,2]
[399434678,1766349032683,-500.0,0.00011093,2]
[399434680,1766349032692,-500.0,0.00011093,2]
[399434682,1766349032702,-500.0,0.00011093,2]
[399434684,1766349032711,-500.0,0.00011093,2]
[399434686,1766349032720,-500.0,0.00011093,2]
[399434688,1766349032729,-500.0,0.00011093,2]
[399434690,1766349032739,-500.0,0.00011093,2]
[399434692,1766349032748,-500.0,0.00011093,2]
[399434693,1766349032758,-500.0,0.00011093,2]
[399434694,1766349032767,-500.0,0.00011093,2]
[399434695,1766349032776,-500.0,0.00011093,2]
[399434696,1766349032785,-500.0,0.00011093,2]
[399434697,1766349032794,-486.25106508,0.00011093,2]
[399434698,1766349032804,-500.0,0.00011093,2]
[399434699,1766349032813,-500.0,0.00011093,2]
[399434700,1766349032822,-500.0,0.00011093,2]
[399434701,1766349032831,-500.0,0.00011093,2]
[399434702,1766349032840,-500.0,0.00011093,2]
[399434703,1766349032849,-500.0,0.00011093,2]
[399434704,1766349032859,-500.0,0.00011093,2]
[399434705,1766349032868,-500.0,0.00011093,2]
[399434706,1766349032877,-500.0,0.00011093,2]
[399434707,1766349032886,-231917.38947698,0.00011094,2]
[399434725,1766349033248,-42290.49579176,0.00011094,2]
[399434726,1766349033260,-287.57868463,0.00011094,2]
[399434727,1766349033271,-3592.19999998,0.00011094,2]
[399434729,1766349037977,-658.38636823,0.00011094,2]
[399434730,1766349037988,-162253.61386789,0.00011094,2]
[399434731,1766349037999,-6632.64964122,0.00011094,2]
[399434732,1766349038011,-5122.48611647,0.00011094,2]
[399434733,1766349038034,-2724.7365,0.00011094,2]
[399434734,1766349038045,-1122.70891671,0.00011094,2]
[399434735,1766349038056,-2433.59788731,0.00011094,2]
[399434736,1766349038104,-11661.51930947,0.00011094,2]
[399434737,1766349038165,-135285.62387498,0.00011094,2]
[399434738,1766349038182,-3379.8,0.00011094,2]
[399434749,1766349040228,-3761.56668137,0.00011094,2]
[399434750,1766349040239,-4568.56152259,0.00011094,2]
[399434751,1766349040250,-16917.08659907,0.00011094,2]
[399434752,1766349040260,-2243.95,0.00011094,2]
[399434753,1766349040271,-363146.04876134,0.00011094,2]
[399434754,1766349040280,-2150.22,0.00011125,2]
[399434755,1766349040290,-278.1911995,0.00011194,2]
[399434756,1766349040300,-300.0,0.00011341,2]
[399434757,1766349040311,-195.0,0.00011341,2]
[399434758,1766349040320,-2150.22,0.00011462,2]
[399434759,1766349040328,-150.0,0.00011762,2]
[399434760,1766349040337,-2150.22,0.00011799,2]
[399434761,1766349040347,-5927.98541634,0.00012,2]
[399434762,1766349040356,-1200.0,0.00012099,2]
[399434763,1766349040366,-300.0,0.00012099,2]
[399434764,1766349040375,-587.0,0.00012099,2]
[399434765,1766349040385,-198.0,0.00012099,2]
[399434766,1766349040394,-2150.22,0.00012136,2]
[399434767,1766349040403,-164.83,0.00012263,2]
[399434768,1766349040412,-1600.0,0.00012361,2]
[399434769,1766349040422,-299.99,0.00012369,2]
[399434770,1766349040431,-150.99,0.00012369,2]
[399434771,1766349040441,-3518.42,0.00012369,2]
[399434772,1766349040450,-278.1911995,0.00012374,2]
[399434773,1766349040460,-500.0,0.00012473,2]
[399434774,1766349040469,-2150.22,0.00012473,2]
[399434775,1766349040479,-9999.99,0.00012474,2]
[399434776,1766349040489,-150.99,0.00012474,2]
[399434777,1766349040500,-999.99,0.00012474,2]
[399434778,1766349040509,-9999.99,0.00012474,2]
[399434779,1766349040519,-294.01141417,0.00012747,2]
[399434780,1766349040528,-2150.22,0.00012811,2]
[399434781,1766349040538,-150.0,0.00012951,2]
[399434782,1766349040547,-500.0,0.00012979,2]
[399434783,1766349040557,-129043.6888462,0.0001299,2]
[399434784,1766349040566,-4412.45542403,0.00013,2]
[399434785,1766349040576,-5328.33632405,0.0001305,2]
[399434786,1766349040586,-478.0,0.00013309,2]
[399434787,1766349040595,-1653.755,0.00013497,2]
[399434788,1766349040605,-8382.2395,0.00013497,2]
[399434789,1766349040614,-2500.0,0.00013497,2]
[399434790,1766349040623,-1000.0,0.000135,2]
[399434791,1766349040632,-6440.64768327,0.00013543,2]
[399434792,1766349040642,-560.42,0.00013589,2]
[399434793,1766349040651,-151.0,0.00013589,2]
[399434794,1766349040660,-151.0,0.00013589,2]
[399434795,1766349040670,-151.0,0.00013589,2]
[399434796,1766349040679,-151.0,0.00013589,2]
[399434797,1766349040688,-151.0,0.00013589,2]
[399434798,1766349040697,-151.0,0.00013589,2]
[399434799,1766349040706,-151.0,0.00013589,2]
[399434800,1766349040715,-151.0,0.00013589,2]
[399434801,1766349040725,-151.0,0.00013589,2]
[399434802,1766349040734,-151.0,0.00013589,2]
[399434803,1766349040743,-151.0,0.00013589,2]
[399434804,1766349040752,-151.0,0.00013589,2]
[399434805,1766349040761,-151.0,0.00013589,2]
[399434806,1766349040770,-151.0,0.00013589,2]
[399434807,1766349040779,-151.0,0.00013589,2]
[399434808,1766349040788,-151.0,0.00013589,2]
[399434809,1766349040797,-151.0,0.00013589,2]
[399434810,1766349040807,-151.0,0.00013589,2]
[399434811,1766349040816,-151.0,0.00013589,2]
[399434813,1766349040825,-151.0,0.00013589,2]
[399434814,1766349040834,-167.14597224,0.00013643,2]
[399434815,1766349040843,-561.7402289,0.00013643,2]
[399434816,1766349040852,-161.51413254,0.00013643,2]
[399434818,1766349040862,-500.0,0.00013643,2]
[399434819,1766349040871,-500.0,0.00013643,2]
[399434821,1766349040880,-500.0,0.00013643,2]
[399434822,1766349040889,-500.0,0.00013643,2]
[399434823,1766349040899,-500.0,0.00013643,2]
[399434824,1766349040908,-500.0,0.00013643,2]
[399434825,1766349040917,-500.0,0.00013643,2]
[399434826,1766349040926,-500.0,0.00013643,2]
[399434827,1766349040936,-467.2879535,0.00013643,2]
[399434828,1766349040945,-174.36363854,0.00013672,2]
[399434829,1766349040954,-261.824715,0.00013673,2]
[399434830,1766349040963,-500.0,0.00013698,2]
[399434831,1766349040972,-500.0,0.00013698,2]
[399434832,1766349040982,-500.0,0.00013698,2]
[399434833,1766349040991,-500.0,0.00013698,2]
[399434834,1766349041000,-500.0,0.00013698,2]
[399434835,1766349041009,-500.0,0.00013698,2]
[399434836,1766349041019,-500.0,0.00013698,2]
[399434837,1766349041028,-500.0,0.00013698,2]
[399434838,1766349041038,-500.0,0.00013698,2]
[399434839,1766349041047,-500.0,0.00013698,2]
[399434840,1766349041056,-500.0,0.00013698,2]
[399434841,1766349041066,-500.0,0.00013698,2]
[399434842,1766349041078,-500.0,0.00013698,2]
[399434843,1766349041089,-500.0,0.00013698,2]
[399434844,1766349041102,-500.0,0.00013698,2]
[399434845,1766349041112,-500.0,0.00013698,2]
[399434846,1766349041131,-500.0,0.00013698,2]
[399434847,1766349041146,-500.0,0.00013698,2]
[399434848,1766349041156,-500.0,0.00013698,2]
[399434849,1766349041167,-500.0,0.00013698,2]
[399434850,1766349041178,-500.0,0.00013698,2]
[399434851,1766349041187,-500.0,0.00013698,2]
[399434852,1766349041196,-500.0,0.00013698,2]
[399434853,1766349041205,-567.20870026,0.00013698,2]
[399434854,1766349041214,-500.0,0.00013698,2]
[399434855,1766349041223,-500.0,0.00013698,2]
[399434856,1766349041234,-525.36930819,0.00013698,2]
[399434857,1766349041243,-500.0,0.00013698,2]
[399434858,1766349041254,-500.0,0.00013698,2]
[399434859,1766349041264,-500.0,0.00013698,2]
[399434860,1766349041274,-221.06533037,0.00013698,2]
[399434861,1766349041284,-1000.0,0.00013699,2]
[399434862,1766349041294,-15706.17,0.00013699,2]
[399434863,1766349041306,-1600.0,0.00013734,2]
[399434864,1766349041316,-560.42,0.00013863,2]
[399434865,1766349041325,-500.0,0.00013907,2]
[399434866,1766349041334,-893.63,0.00013907,2]
[399434867,1766349041343,-6440.64768324,0.00013916,2]
[399434868,1766349041352,-560.42,0.00014137,2]
[399434869,1766349041362,-580.20183557,0.00014191,2]
[399434870,1766349041372,-3240.0,0.00014254,2]
[399434871,1766349041381,-6440.64768324,0.00014289,2]
[399434872,1766349041390,-10278.21634745,0.0001439,2]
[399434873,1766349041399,-560.42,0.00014411,2]
[399434874,1766349041408,-6440.64768324,0.00014662,2]
[399434875,1766349041417,-560.42,0.00014685,2]
[399434876,1766349041426,-20392.7273,0.000148,2]
[399434877,1766349041436,-1000.0,0.000148,2]
[399434878,1766349041445,-226.46240275,0.000149,2]
[399434879,1766349041454,-560.45,0.00014959,2]
[399434880,1766349041464,-1047.98,0.00014991,2]
[399434881,1766349041474,-5014.92,0.00014999,2]
[399434882,1766349041484,-2040.75911121,0.00015,2]
[399434883,1766349041494,-1344.08769236,0.00015,14]
[399434884,1766349041503,-7944.46519883,0.00015,2]
[399434885,1766349041514,-21352.27553926,0.00015,2]
[399434886,1766349041525,-1154.75497368,0.00015,2]
[399434887,1766349041534,-25859.84987091,0.00015,2]
[399434888,1766349041543,-151.0,0.00015032,2]
[399434889,1766349041553,-6440.64768324,0.00015035,2]
[399434890,1766349041563,-553.63,0.00015068,2]
[399434891,1766349041572,-1600.0,0.00015107,2]
[399434892,1766349041581,-1517.64,0.000153,2]
[399434893,1766349041592,-164.83,0.00015328,2]
[399434894,1766349041602,-505.85702931,0.000154,2]
[399434895,1766349041611,-6440.64768324,0.00015408,2]
[399434896,1766349041620,-1908.73,0.00015467,2]
[399434897,1766349041630,-16701.27872054,0.00015556,2]
[399434898,1766349041639,-500.0,0.00015734,2]
[399434899,1766349041648,-500.0,0.00015734,2]
[399434900,1766349041658,-500.0,0.00015734,2]
[399434901,1766349041667,-500.0,0.00015734,2]
[399434902,1766349041677,-500.0,0.00015734,2]
[399434903,1766349041686,-500.0,0.00015734,2]
[399434904,1766349041695,-500.0,0.00015734,2]
[399434905,1766349041704,-416.97007876,0.00015734,2]
[399434906,1766349041714,-500.0,0.00015734,2]
[399434907,1766349041724,-500.0,0.00015734,2]
[399434908,1766349041733,-500.0,0.00015734,2]
[399434909,1766349041743,-500.0,0.00015734,2]
[399434910,1766349041752,-500.0,0.00015734,2]
[399434911,1766349041762,-500.0,0.00015734,2]
[399434912,1766349041771,-500.0,0.00015734,2]
[399434913,1766349041780,-500.0,0.00015734,2]
[399434914,1766349041789,-500.0,0.00015734,2]
[399434915,1766349041799,-893.63,0.00015734,2]
[399434916,1766349041808,-893.63,0.00015734,2]
[399434917,1766349041817,-893.63,0.00015734,2]
[399434918,1766349041827,-893.63,0.00015734,2]
[399434919,1766349041836,-500.0,0.00015734,2]
[399434920,1766349041844,-361.71177752,0.00015734,2]
[399434921,1766349041854,-500.0,0.00015734,2]
[399434922,1766349041863,-510.69307451,0.00015734,2]
[399434923,1766349041872,-6440.64768324,0.00015781,2]
[399434924,1766349041882,-2228.99632343,0.00015807,2]
[399434925,1766349041892,-1000.0,0.00015835,2]
[399434926,1766349041902,-212.77043573,0.00015954,2]
[399434927,1766349041910,-151.0,0.00015997,2]
[399434928,1766349041920,-23721.69410328,0.00016,2]
[399434929,1766349041930,-1310332.30521667,0.00016,4]
[399434930,1766349041949,-600.0,0.00016,4]
[399434931,1766349041960,-1039.7490326,0.00016,4]
[399434932,1766349041972,-629.14485114,0.00016,4]
[399434933,1766349041983,-57321.63059446,0.00016,4]
[399434934,1766349041995,-500.0,0.00016,4]
[399434935,1766349042006,-386.49005528,0.00016,4]
[399434936,1766349042017,-709879.53337538,0.00016,4]
[399434937,1766349042029,-2732.7300008,0.00016,4]
[399434938,1766349042040,-1588.82115271,0.00016,4]
[399434939,1766349042057,-394.95440656,0.00016,4]
[399434940,1766349042068,-801.04957216,0.00016,4]
[399434941,1766349042080,-1932.73780049,0.00016,4]
[399434942,1766349042094,-959.37255751,0.00016,4]
[399434943,1766349042105,-362.52051322,0.00016,4]
[399434951,1766349043034,-500.0,0.00013589,2]
[399434952,1766349043045,-300.0,0.00016,4]
[399434953,1766349043058,-142831.73375961,0.00016,4]
[399434954,1766349043068,-6440.64768324,0.00016154,2]
[399434956,1766349043077,-2424.25,0.0001616,2]
[399434957,1766349043088,-5000.00006691,0.000162,5]
[399434958,1766349043099,-553.63,0.00016438,2]
[399434959,1766349043111,-284.26223188,0.00016473,2]
[399434960,1766349043120,-500.0,0.00016473,2]
[399434961,1766349043131,-500.0,0.00016473,2]
[399434962,1766349043142,-500.0,0.00016473,2]
[399434963,1766349043151,-500.0,0.00016473,2]
[399434964,1766349043163,-500.0,0.00016473,2]
[399434965,1766349043172,-500.0,0.00016473,2]
[399434966,1766349043181,-500.0,0.00016473,2]
[399434967,1766349043192,-500.0,0.00016473,2]
[399434968,1766349043201,-500.0,0.00016473,2]
[399434969,1766349043211,-500.0,0.00016473,2]
[399434970,1766349043221,-510.66155099,0.00016473,2]
[399434971,1766349043231,-500.0,0.00016473,2]
[399434972,1766349043240,-500.0,0.00016473,2]
[399434973,1766349043249,-500.0,0.00016473,2]
[399434974,1766349043259,-1600.0,0.00016481,2]
[399434975,1766349043269,-6440.64768324,0.00016527,2]
[399434976,1766349043279,-6440.64768324,0.000169,2]
[399434977,1766349043288,-556.46936953,0.000169,2]
[399434978,1766349043297,-556.46936953,0.00016911,2]
[399434979,1766349043307,-556.46936953,0.00016921,2]
[399434980,1766349043317,-151.0,0.00016997,2]
[399434981,1766349043326,-300.0,0.00016999,2]
[399434983,1766349043336,-2215.29799572,0.00016999,2]
[399434985,1766349043345,-666.0,0.00016999,2]
[399434986,1766349043354,-300.0,0.00016999,2]
[399434987,1766349043363,-666.0,0.00016999,2]
[399434988,1766349043372,-157151.0510977,0.00017,2]
[399434989,1766349043383,-345.7829875,0.00017,2]
[399434990,1766349043394,-2365.08758627,0.00017,2]
[399434991,1766349043405,-1599.7566905,0.00017,2]
[399434992,1766349043416,-49934.43631107,0.00017,2]
[399434993,1766349043427,-89351.42199283,0.00017,2]
[399434995,1766349043445,-1619.59663418,0.00017,2]
[399434997,1766349043456,-1825.84649464,0.00017,2]
[399434998,1766349043467,-1001.9863755,0.00017,2]
[399434999,1766349043479,-345375.25891288,0.00017,2]
[399435000,1766349043491,-37449.57466813,0.00017,2]
[399435001,1766349043503,-144283.33294669,0.00017,2]
[399435002,1766349043767,-301.1,0.00017,2]
[399435003,1766349043779,-276.93361131,0.00017,2]
[399435004,1766349043790,-358.46845774,0.00017,2]
[399435005,1766349043801,-35708.77727969,0.00017,2]
[399435012,1766349046086,-4056.5957587,0.00017,2]
[399435013,1766349046102,-3275.848593,0.00017,2]
[399435014,1766349046145,-373.96952708,0.00017,2]
[399435015,1766349046258,-51659.22923093,0.00017,2]
[399435016,1766349046271,-8911.79410613,0.00017,2]
[399435017,1766349046284,-4302.89348897,0.00017,2]
[399435018,1766349046297,-731.62221783,0.00017,2]
[399435019,1766349046310,-2486.13672743,0.00017,2]
[399435020,1766349046370,-616.0,0.00017,2]
[399435027,1766349097181,1323.004,0.00035056,40]
[399435034,1766349125387,500.0,0.00035616,30]
[399435035,1766349125980,500.0,0.00035616,30]
[399435036,1766349126582,500.0,0.00035616,30]
[399435037,1766349127202,500.0,0.00035616,30]
[399435038,1766349128454,419.23549166,0.00035616,30]
[399435039,1766349128487,200.0,0.00035616,30]
[399435040,1766349130351,200.0,0.00035616,30]
[399435041,1766349130975,500.0,0.00035616,30]
[399435042,1766349131575,500.0,0.00035616,30]
[399435043,1766349132173,151.0,0.00035616,30]
[399435044,1766349132208,500.0,0.00035616,30]
[399435045,1766349132807,500.0,0.00035616,30]
[399435046,1766349133248,151.0,0.00035616,30]
[399435047,1766349133422,500.0,0.00035616,30]
[399435048,1766349133892,151.0,0.00035616,30]
[399435049,1766349134014,500.0,0.00035616,30]
[399435051,1766349134513,151.0,0.00035616,30]
[399435052,1766349134632,500.0,0.00035616,30]
[399435053,1766349135232,500.0,0.00035616,30]
[399435055,1766349135694,151.0,0.00035616,30]
[399435056,1766349135880,500.0,0.00035616,30]
[399435057,1766349136254,200.0,0.00035616,30]
[399435058,1766349136480,500.0,0.00035616,30]
[399435059,1766349136812,151.0,0.00035616,30]
[399435060,1766349137091,500.0,0.00035616,30]
[399435061,1766349137419,151.0,0.00035616,30]
[399435062,1766349138014,151.0,0.00035616,30]
[399435063,1766349139149,151.0,0.00035616,30]
[399435064,1766349139222,151.0,0.00035616,30]
[399435065,1766349139397,500.0,0.00035616,30]
[399435066,1766349139805,151.0,0.00035616,30]
[399435136,1766349304655,1000.0,0.00035616,30]
[399435389,1766349881655,151.0,0.00030858,31]
[399435393,1766349927686,151.0,0.00032,31]